Cogmind - Beta 16 @@@ ROGUE MODE // 2025.12.08 @ 23:13:12 Player: fothu Result: Destroyed by S-27 Virus with Autogun Performance ------------- Evolutions (4) 2000 Regions Visited (4) 800 Robots Destroyed (10) 50 Value Destroyed (302) 302 Prototype IDs (1) 20 Alien Tech Used (0) 0 Bonus (-41) -41 TOTAL SCORE: 3131 Bonus ------- Friendly Fire -41 Cogmind --------- Core Integrity 0/850 Matter 107/300 Energy 40/100 System Corruption 0% Temperature Cool (9) Movement Core (750) Ox14 Location -6/Factory Parts ------- > --- POWER (3) -------- (None) > --- PROPULSION (4) --- (None) > --- UTILITY (4) ------ High-capacity Storage Unit > --- WEAPON (4) ------- Autogun > --- INVENTORY (20) --- Targeting Computer Hardlight Generator Shield Generator Field Recycling Unit (0) Peak State ------------ > --- POWER ------------ Light Angular Momentum Engine > --- PROPULSION ------- Carbon-fiber Leg Carbon-fiber Leg > --- UTILITY ---------- High-capacity Storage Unit Subdweller Optics Shield Generator Field Recycling Unit > --- WEAPON ----------- Lightning Gun High-powered Shock Rifle Coil Gun Advanced Assault Cannon > --- INVENTORY -------- Wheel Targeting Computer Scrap Shield Hardlight Generator Shield Generator Shield Generator Field Recycling Unit Improved Spread Laser Plasma Rifle Beamcaster [Rating: 39] Favorites ----------- Power Light Angular Momentum Engine Engine Light Angular Momentum Engine Propulsion Carbon-fiber Leg Leg Carbon-fiber Leg Wheel Wheel Utility Shield Generator Device Shield Generator Storage High-capacity Storage Unit Protection Scrap Shield Weapon Beamcaster Energy Gun Beamcaster Ballistic Gun Coil Gun Ballistic Cannon Advanced Assault Cannon Launcher Mini Grenade Launcher Special Weapon Flamer Build | -11 -10 -10 -9 -6 ------- Run | Yrd Mat Sub Scr Fac Slots Evolved 8 | . . . . 8 Power 2 | . . . . 2 Propulsion 2 | . . . . 2 Utility 2 | . . . . 2 Weapon 2 | . . . . 2 Parts Attached 29 | 6 3 6 3 11 Power 3 | 1 . 1 . 1 Engine 3 | 1 . 1 . 1 Core . | . . . . . Reactor . | . . . . . Propulsion 5 | 2 . 2 . 1 Treads . | . . . . . Leg 2 | . . 2 . . Wheel 3 | 2 . . . 1 Hover . | . . . . . Flight . | . . . . . Utility 8 | 1 1 1 . 5 Device 4 | . 1 . . 3 Storage 3 | 1 . 1 . 1 Processor . | . . . . . Hackware . | . . . . . Protection 1 | . . . . 1 Artifact . | . . . . . Weapon 13 | 2 2 2 3 4 Energy Gun 7 | 2 . 1 1 3 Energy Cannon . | . . . . . Ballistic Gun 2 | . . . 1 1 Ballistic Cannon 1 | . . . 1 . Launcher 2 | . 2 . . . Special Weapon 1 | . . 1 . . Impact Weapon . | . . . . . Slashing Weapon . | . . . . . Piercing Weapon . | . . . . . Special Melee Weapon . | . . . . . Unidentified Prototypes 1 | . . . . 1 Parts Lost 18 | . . . . 18 Power 2 | . . . . 2 Propulsion 4 | . . . . 4 Utility 5 | . . . . 5 Weapon 7 | . . . . 7 Highest Loss Streak 16 | . . . . 16 To Critical Strikes . | . . . . . Average Backups 7 | . 2 7 9 7 Power . | . . . . . Propulsion . | . . . 1 . Utility 5 | . 2 5 6 4 Weapon 1 | . . . 2 2 Tool/Special . | . . . . . Unused Backups 5 | . . 1 . 4 Power . | . . . . . Propulsion 1 | . . 1 . . Utility 4 | . . . . 4 Weapon . | . . . . . Tool/Special . | . . . . . Average Slot Usage (%) 90 | . 94 100 100 65 Engine 11 | . 14 14 14 5 Leg 15 | . . 8 28 11 Wheel 8 | . 28 19 . . Device 14 | . 8 14 14 17 Storage 11 | . 14 14 14 6 Energy Gun 12 | . 9 5 19 11 Ballistic Gun 2 | . . . 2 5 Ballistic Cannon 1 | . . . . 5 Launcher 6 | . 18 16 . . Special Weapon 3 | . . 5 6 . Peak Build Rating 39 | 6 10 23 26 39 Average Rating 22 | 3 8 14 23 34 On Entrance 12 | . 6 10 22 25 Avg Prop Armor Cover (%) 5 | . . 5 . . Naked Turns . | . . . . . Heaviest Build 81 | 13 14 58 61 81 Greatest Support 30 | 26 26 30 30 30 Greatest Overweight (x) 16 | . . 3 2 16 Average Overweight (x) 1 | . . 1 1 2 Largest Inventory Capacity 20 | 8 8 20 20 20 Average Capacity 18 | 5 8 19 20 19 Most Carried 12 | 3 4 11 12 11 Average Carried 8 | . 2 8 10 8 Final Capacity 20 | 8 8 20 20 20 Final Carried 11 | . 4 10 11 4 Class Distribution -------------------- 44% | Scavenger-Mutant 32% | Mutant 21% | Scavenger-Tank Dominant Class ---------------- Mutant | -10/Materials Mutant | -10/Subcaves Scavenger-Mutant | -9/Scraptown Scavenger-Tank | -6/Factory Resources | -11 -10 -10 -9 -6 ----------- Run | Yrd Mat Sub Scr Fac Matter Collected 719 | 185 . 355 50 129 Remotely . | . . . . . Salvage Created 92 | . . 20 . 72 Parts 11 | . . 7 . 4 Haulers Intercepted . | . . . . . Recyclers Shooed . | . . . . . Parts Field Recycled . | . . . . . Retrieved Matter . | . . . . . Parts Self-Destructed 4 | . . 4 . . Prevented . | . . . . . Parts Restored . | . . . . . Kills | -11 -10 -10 -9 -6 ------- Run | Yrd Mat Sub Scr Fac Combat Hostiles Destroyed 7 | . . 3 . 4 Guns 1 | . . . . 1 Cannons 3 | . . . . 3 AOE 3 | . . 3 . . Classes Destroyed 4 | . . 2 . 2 Turret 2 | . . 2 . . Watcher 1 | . . . . 1 Swarmer 6 | . . 3 . 3 Hunter 1 | . . . . 1 Best Kill Streak 5 | . . 5 . 2 Combat Bots Only 3 | . . 3 . 2 Max Kills in Single Turn 3 | . . 3 . 1 Gunslinging . | . . . . . Exploded 3 | . . 3 . . Melee . | . . . . . Uniques/NPCs Destroyed . | . . . . . Combat | -11 -10 -10 -9 -6 -------- Run | Yrd Mat Sub Scr Fac Hostile Shots Fired 270 | . . 35 . 235 Missed 77 | . . 14 . 63 Hits 193 | . . 21 . 172 Projectile 193 | . . 21 . 172 Critical Strikes 4 | . . . . 4 Damage Taken 2811 | . . 170 . 2641 Core 880 | . . 25 . 855 Absorbed by Shields 248 | . . 68 . 180 Core Remaining (%) 95 | 100 . . 90 . Volleys Fired 31 | . . 10 . 21 Largest 4 | . . 2 . 4 Hottest 185 | . . 175 . 185 Shots Fired 62 | . . 20 . 42 Gun 24 | . . 2 . 22 Cannon 20 | . . . . 20 Launcher 16 | . . 16 . . Special 2 | . . 2 . . Kinetic 38 | . . . . 38 Thermal 6 | . . 4 . 2 Explosive 16 | . . 16 . . Electromagnetic 2 | . . . . 2 Robot Hit Streak 4 | . . 3 . 4 Robot Miss Streak 5 | . . 1 . 5 Penetration Max 1 | . . . . 1 Secondary Targets . | . . . . . Shots Hit Robots 27 | . . 5 . 22 Core Hits 21 | . . 14 . 7 Critical Kills . | . . . . . Critical Parts Destroyed 1 | . . . . 1 Critical Strikes 3 | . . . . 3 Burn 1 | . . . . 1 Destroy 1 | . . . . 1 Blast 1 | . . . . 1 Melee Attacks . | . . . . . Impact . | . . . . . Slashing . | . . . . . Piercing . | . . . . . Sneak Attacks . | . . . . . Combat Hostiles . | . . . . . Follow-up Attacks . | . . . . . Damage Inflicted 1362 | . . 651 . 711 Guns 253 | . . 22 . 231 Cannons 329 | . . . . 329 Explosions 758 | . . 607 . 151 Melee . | . . . . . Ramming . | . . . . . Kinetic 516 | . . . . 516 Thermal 239 | . . 44 . 195 Explosive 607 | . . 607 . . Electromagnetic . | . . . . . Impact . | . . . . . Slashing . | . . . . . Piercing . | . . . . . Highest Corruption . | . . . . . Average Corruption . | . . . . . Corruption Purged . | . . . . . Corruption Blocked . | . . . . . Overload Shots . | . . . . . Overflow Damage 69 | . . . . 69 Projectiles . | . . . . . Explosions 69 | . . . . 69 Melee . | . . . . . Knockbacks 3 | . . . . 3 Impact . | . . . . . Kinetic 3 | . . . . 3 Secondary . | . . . . . Self-Inflicted Damage 32 | . . 32 . . Shots 2 | . . 2 . . Rammed . | . . . . . Targets Rammed . | . . . . . Kicked . | . . . . . Crushed . | . . . . . Highest Temperature 195 | . . 30 . 195 Average Temperature 44 | . . 14 . 47 Received Heat Transfer 587 | . . 48 . 539 Siege Activations . | . . . . . Martial Activations . | . . . . . Shielding Activations . | . . . . . Robots Disrupted . | . . . . . Combat Hostiles . | . . . . . Robots Corrupted . | . . . . . Combat Hostiles . | . . . . . Parts Fried . | . . . . . Impact Corruptions . | . . . . . Robots Melted . | . . . . . Combat Hostiles . | . . . . . Parts Melted . | . . . . . Heat Transferred 497 | . . 197 . 300 Parts Sabotaged . | . . . . . Parts Stolen . | . . . . . Parts Stripped . | . . . . . Power Chain Reactions . | . . . . . Alert | -11 -10 -10 -9 -6 ------- Run | Yrd Mat Sub Scr Fac Maximum Alert Level . | . . . . . Low Security (%) 100 | 100 100 . . 100 Level 1 . | . . . . . Level 2 . | . . . . . Level 3 . | . . . . . Level 4 . | . . . . . Level 5 . | . . . . . High Security . | . . . . . Max Security . | . . . . . Peak Influence 133 | . . . . 133 Initial . | . . . . . Average 12 | . . . . 17 Influence Increases 383 | . . 160 . 223 Destroy 0b10 Robot/C 180 | . . 100 . 80 Destroy 0b10 Robot/NC 5 | . . . . 5 Destroy Leader 32 | . . . . 32 Disable Machine 60 | . . . . 60 Destroy Structure 1 | . . . . 1 Lose Combat Pursuer 105 | . . 60 . 45 Influence Decreases 353 | . . 160 . 193 Time Decay 224 | . . 160 . 64 Lost Part 129 | . . . . 129 Squads Dispatched 2 | . . . . 2 Investigation . | . . . . . Extermination . | . . . . . Reinforcement 2 | . . . . 2 Assault . | . . . . . Garrison . | . . . . . Intercept . | . . . . . Searches Triggered . | . . . . . Construction Impeded . | . . . . . Haulers Reinforced 1 | . . . . 1 Active Scanning Responses . | . . . . . Cargo Convoy Interrupts . | . . . . . Stealth | -11 -10 -10 -9 -6 --------- Run | Yrd Mat Sub Scr Fac Distress Signals . | . . . . . Communications Jammed . | . . . . . Distress Signals . | . . . . . Times Spotted 35 | . . 21 . 14 Peak Tracking Total 7 | . . 6 . 7 Tactical Retreats 4 | . . 2 . 2 Traps | -11 -10 -10 -9 -6 ------- Run | Yrd Mat Sub Scr Fac Traps Triggered 1 | . . . . 1 Indirectly . | . . . . . Trap Hack Attempts . | . . . . . Triggered . | . . . . . Disarmed . | . . . . . Reprogrammed . | . . . . . Reused . | . . . . . Traps Extracted . | . . . . . Installed . | . . . . . Triggered . | . . . . . Machines | -11 -10 -10 -9 -6 ---------- Run | Yrd Mat Sub Scr Fac Machines Disabled 7 | . . 3 . 4 Max in Single Turn 4 | . . 2 . 4 Machines Repaired . | . . . . . Machines Dismantled . | . . . . . Machines Sabotaged . | . . . . . Overloaded Fab Kills . | . . . . . Hacking | -11 -10 -10 -9 -6 --------- Run | Yrd Mat Sub Scr Fac Machines Accessed 4 | . 1 . 2 1 Terminals 1 | . 1 . . . Fabricators . | . . . . . Repair Stations 1 | . . . . 1 Recycling Units . | . . . . . Scanalyzers . | . . . . . Garrison Access . | . . . . . Total Hacks 21 | . 1 . 19 1 Successful 20 | . . . 19 1 Failed 1 | . 1 . . . Catastrophic . | . . . . . Database Lockouts . | . . . . . Manual . | . . . . . Terminals 1 | . 1 . . . Fabricators . | . . . . . Repair Stations 1 | . . . . 1 Recycling Units . | . . . . . Scanalyzers . | . . . . . Garrison Access . | . . . . . Terminal Hacks 19 | . . . 19 . Record 19 | . . . 19 . Fabricator Hacks . | . . . . . Repair Station Hacks 1 | . . . . 1 Scan Component 1 | . . . . 1 Recycling Unit Hacks . | . . . . . Scanalyzer . | . . . . . Garrison Access Hacks . | . . . . . Unauthorized Hacks . | . . . . . Terminals . | . . . . . Fabricators . | . . . . . Repair Stations . | . . . . . Recycling Units . | . . . . . Scanalyzers . | . . . . . Garrison Access . | . . . . . Data Cores Recovered . | . . . . . Used . | . . . . . Hacking Detections 1 | . 1 . . . Full Trace Events . | . . . . . Feedback Events . | . . . . . Feedback Blocked . | . . . . . Robot Schematics Acquired . | . . . . . Robots Built . | . . . . . Authchips . | . . . . . Time . | . . . . . Total Robot Build Rating . | . . . . . Part Schematics Acquired . | . . . . . Parts Built . | . . . . . Authchips . | . . . . . Time . | . . . . . Total Part Build Rating . | . . . . . Part Studies Acquired . | . . . . . Parts Repaired . | . . . . . Time . | . . . . . Parts Recycled . | . . . . . Recycled Matter . | . . . . . Retrieved Matter . | . . . . . Retrieved Components . | . . . . . Parts Scanalyzed . | . . . . . Part Schematics Acquired . | . . . . . Parts Damaged . | . . . . . Bothacking | -11 -10 -10 -9 -6 ------------ Run | Yrd Mat Sub Scr Fac Used RIF Installer . | . . . . . Robots Hacked . | . . . . . Non-combat . | . . . . . Combat . | . . . . . Robot Hacks Applied . | . . . . . Relay Couplers Released . | . . . . . Fabnet Peak Effective % . | . . . . . Robots Rewired . | . . . . . Allies Hacked . | . . . . . Hacks Repelled . | . . . . . Allies | -11 -10 -10 -9 -6 -------- Run | Yrd Mat Sub Scr Fac Total Allies . | . . . . . Largest Group . | . . . . . Highest-Rated Group . | . . . . . Highest-Rated Ally . | . . . . . Total Orders . | . . . . . Ally Attacks . | . . . . . Total Damage . | . . . . . Kills . | . . . . . Allies Corrupted . | . . . . . Allies Melted . | . . . . . Intel | -11 -10 -10 -9 -6 ------- Run | Yrd Mat Sub Scr Fac Active Infowar (turns) 662 | . . . . 662 Optics 662 | . . . . 662 Robot Analysis Total . | . . . . . Derelict Logs Recovered 1 | . . 1 . . Drone Launches . | . . . . . Drone Recoveries . | . . . . . Exploration | -11 -10 -10 -9 -6 ------------- Run | Yrd Mat Sub Scr Fac Turns Passed 2709 | 40 229 798 912 730 Spaces Moved 1554 | 36 241 586 449 242 Core 13 | 9 . . . 4 Treads . | . . . . . Legs 798 | . . 126 449 223 Wheels 743 | 27 241 460 . 15 Hover . | . . . . . Flight . | . . . . . Fastest Speed 50 | 50 90 90 190 125 Average Speed 162 | 80 90 126 200 260 Slowest Speed 850 | 90 90 330 260 850 Overloaded Moves . | . . . . . Propulsion Burnouts . | . . . . . Robots Hopped . | . . . . . Potential Cave-ins . | . . . . . Cave-ins Triggered . | . . . . . Exploration Rate (%) 22 | 2 32 29 38 9 Regions Visited 4 Branch Regions 2 Pre-discovered Areas 1 | . . 1 . . Known Exits Taken . | . . . . . Unknown Exits Taken 4 | 1 1 1 1 . Scrap Searched 2 | . . . 2 . Spaces Dug 14 | . . 14 . . Terrain Destroyed 95 | . . 94 . 1 Melee . | . . . . . Projectile 1 | . . . . 1 AOE 94 | . . 94 . . Terrain Rammed . | . . . . . Walls Destroyed . | . . . . . Machines Disabled . | . . . . . Actions | -11 -10 -10 -9 -6 --------- Run | Yrd Mat Sub Scr Fac Total 1677 | 47 252 619 460 299 Wait . | . . . . . Move 1550 | 35 240 585 448 242 Hop . | . . . . . Pick Up 35 | 6 7 10 4 8 Fast Attach . | . . . . . Attach 20 | 6 1 . . 13 Detach . | . . . . . Swap 25 | . 2 9 5 9 Drop 11 | . 2 5 3 1 Fire 31 | . . 10 . 21 Melee . | . . . . . Ram . | . . . . . Kick . | . . . . . Crush . | . . . . . Escape Stasis 5 | . . . . 5 Rewire . | . . . . . Trap . | . . . . . Miscellaneous . | . . . . . Route ------- -11/Scrapyard -10/Materials (discovered 2 exits: [*Mat] / [*Sub]) -10/Subcaves (discovered 4 exits: [*Mat x2] / [*Rec] / *Scr) -9/Scraptown -6/Factory History --------- Turn | Location | Event 3 | -11/Scrapyard | Discovered new exit (range 15) 41 | -11/Scrapyard | Entered Materials 92 | -10/Materials | Discovered new exit (range 16) 249 | -10/Materials | Discovered new exit (range 13) 270 | -10/Materials | Entered Subcaves 271 | -10/Subcaves | Approached by a straggling Scientist 312 | -10/Subcaves | Build established: Mutant 315 | -10/Subcaves | Discovered new exit (range 14) 420 | -10/Subcaves | Shifting Twisted Machinery released Flamer 423 | -10/Subcaves | Ambushed by swarm of Subdwellers 423 | -10/Subcaves | Discovered new exit (range 14) 500 | -10/Subcaves | Discovered new exit (range 11) 608 | -10/Subcaves | Learned location of Zion (-7) 1068 | -10/Subcaves | Entered Scraptown 1141 | -9/Scraptown | Build established: Scavenger-Mutant 1352 | -9/Scraptown | Visited Cyclists 1431 | -9/Scraptown | Visited Junk Repository 1858 | -9/Scraptown | Discovered new exit (range 5) 1980 | -9/Scraptown | Entered Factory 1980 | -6/Factory | Evolved 8 slots: Power x2, Propulsion x2, Utility x2, Weapon x2 2317 | -6/Factory | Build established: Scavenger-Tank 2694 | -6/Factory | Core integrity fell below 50% 2707 | -6/Factory | Core integrity fell below 20% 2710 | -6/Factory | Destroyed by S-27 Virus with Autogun Last Messages --------------- U-05 Engineer lays Concrete. Shield Generator destroyed. Penetrated by Slug. U-05 Engineer lays Concrete. Acquired Wheel. U-05 Engineer lays Concrete. Acquired 15 matter. U-05 Engineer lays Concrete. Penetrated by Slug. Wheel destroyed. Acquired Lgt. Ion Engine. [Achievement: There's More Where That Came From] Penetrated by Slug. Lgt. Ion Engine destroyed. U-05 Engineer lays Concrete. Beamcaster destroyed. U-05 Engineer lays Concrete. Penetrated by Slug. U-05 Engineer lays Concrete. S-27 Virus destroyed. Map ----- +----------------------------------------------------+ | ????????????????????????????????????????# | | ????????????????????????????????????????###### | | ?????????????????????????????????????????????? | | ?????????????????????????????????????????????? | | ????????????????????????????????????? ???????? | | ????????????????????????????????????" ???????? | | ???????????????????????????????????? ???????? | | ???????????????????????????????????? ???????? | | ???????????????????????????????????? ???????? | | ???????????????????????????????????? ???????? | | ???????????????????############????#+#+####### | | ????????????????? ##### | | ?????????????? =#### | | ???????????? ! #??? | | ??????????# #??? | | ??????????# % #??? | | ?????????## g % #??? | | ????????? #??? | | ???????? #??? | | ???????? #??? | | ???????? u g #??? | | ??????? +??? | | ?????????? #??? | | ?????????????# #??? | | ?????????????# #??? | | ?????????????# @ % #??? | | ???????????#"" #??? | | ???????????#T #??? | | ???????????### m % #??? | | ?????????????# t %* #??? | | ?????????????# ?? | | ?????????????######### +? | | ?????????????????????# s ### % #? | | ?????????????????????#s ###+##### ?? | | ????????????????????? #???????? ??? | | ????????????????????+ #???????? ???? | | ????????????????????# #??????????????? | | ????????????????????# s### ###??????????????? | | ????????????????????# #?# #????????????????? | | ????????????????????# #?# #????????????????? | | ????????????????????# ???+#????????????????? | | ????????????????????? ?????????????????????? | | ?????????????????????????????????????????????? | | ?????????????????????????????????????????????? | | ?????????????????????????????????????????????? | | ?????????????????????????????????????????????? | | ?????????????????????????????????????????????? | | ?????????????????????????????????????????????? | | ?????????????????????????????????????????????? | | ?????????????????????????????????????????????? | +----------------------------------------------------+ Best States ------------- Heat Dissipation 37 Energy Generation 18 Energy Capacity 250 Matter Stores 300 Matter Capacity 300 Sight Range 21 Terrain Scan Density 10 Armor Coverage 800 Evasion (%) 42 Item Schematics ----------------- None Robot Schematics ------------------ None Fabricated ------------ Nothing Repaired ---------- Nothing Studied --------- None Alien Tech Used ----------------- None Achievements -------------- Civilization 2243 Overwhelming Please Form A Line Spot Them First There's More Where That Came From Challenges ------------ None Game ------ Seed MicroHardcellEngine Manual? 0 Play Time 00:25:57 Cumulative 2.1 hours Start 2025.12.08 @ 22:48:46 End 2025.12.08 @ 23:13:12 Sessions 1 Manual Loads 0 Difficulty Rogue Special Mode None Game No. 6 Rogue 5 Adventurer 1 Explorer 0 Win Type - Total 0 Types 0/0/0/0/0/0/0/0/0/0 Lore% 7 Gallery% 6 Achievement% 4 Wizard Run 0 Options --------- Layout 1 ASCII 0 Keyboard 0 Movement Mouse Keybinds 0 Fullscreen 2 Font 32/SmallcapsGlow Map View 50x40 Zoom Use 0% Tactical HUD 0 Map Filters NONE Filters NONE Steam 1 RUN: 49e7b5da-8041-4785-9db4-d1e5342d101f